bitfinex/quotes_ETHUSD_20250914
["timestamp","ask_amount","ask_price","bid_price","bid_amount"]
[1757854530732,0.00038036,4631.0,4630.9,9.18760745]
[1757854531009,1e-08,4631.1,4631.0,5.15936082]
[1757854531177,1e-08,4631.1,4631.0,7.06798985]
[1757854531373,1e-08,4631.1,4631.0,6.89248985]
[1757854532502,1e-08,4631.1,4631.0,7.68448985]
[1757854532673,1e-08,4631.1,4631.0,11.41748985]
[1757854533115,1e-08,4631.1,4631.0,7.68448985]
[1757854533295,1e-08,4631.1,4631.0,11.12128985]
[1757854533497,0.09900001,4631.1,4631.0,11.12128985]
[1757854534017,1e-08,4631.1,4631.0,11.12028985]
[1757854534376,1e-08,4631.1,4631.0,11.41448985]
[1757854534581,0.58620001,4631.1,4631.0,0.792]
[1757854534782,0.94360001,4631.1,4630.9,2.15936811]
[1757854535018,0.09900001,4631.1,4631.0,5.90895442]
[1757854535205,0.09900001,4631.1,4631.0,5.89336082]
[1757854535730,1e-08,4631.1,4631.0,9.68536082]
[1757854535910,1e-08,4631.1,4631.0,10.88056127]
[1757854536420,0.09900001,4631.1,4631.0,10.88056127]
[1757854536626,0.58620001,4631.1,4631.0,5.95136082]
[1757854536998,0.58620001,4631.1,4631.0,9.68636082]
[1757854537431,0.09900001,4631.1,4631.0,9.68636082]
[1757854537583,1e-08,4631.1,4631.0,9.68636082]
[1757854537785,1e-08,4631.1,4631.0,9.98056082]
[1757854537986,0.09900001,4631.1,4631.0,10.95805127]
[1757854538186,1e-08,4631.1,4631.0,10.95805127]
[1757854538513,0.58620001,4631.1,4631.0,5.95136082]
[1757854538717,0.58620001,4631.1,4631.0,8.89336082]
[1757854539226,0.58620001,4631.1,4631.0,8.89236082]
[1757854539511,0.94360001,4631.1,4631.0,8.89236082]
[1757854539685,0.94360001,4631.1,4631.0,8.89136082]
[1757854539880,0.58620001,4631.1,4631.0,8.89136082]
[1757854540411,0.77420001,4631.1,4631.0,8.89136082]
[1757854541411,0.77420001,4631.1,4631.0,8.89236082]
[1757854541611,0.94550001,4631.1,4631.0,8.89236082]
[1757854541814,0.28700001,4631.1,4631.0,5.16036082]
[1757854542116,1e-08,4631.1,4631.0,8.89136082]
[1757854542518,0.28580001,4631.1,4631.0,8.89136082]
[1757854542818,0.28580001,4631.1,4631.0,9.97756082]
[1757854542819,1e-08,4631.1,4631.0,9.97756082]
[1757854542996,1e-08,4631.1,4631.0,11.24895127]
[1757854543200,1e-08,4631.1,4631.0,11.71865127]
[1757854544620,1e-08,4631.1,4631.0,12.17625127]
[1757854545219,1e-08,4631.1,4631.0,11.71865127]
[1757854545518,1e-08,4631.1,4631.0,10.95475127]
[1757854545816,0.09900001,4631.1,4631.0,5.95236082]
[1757854545988,0.57510001,4631.1,4631.0,9.67936082]
[1757854546419,0.57510001,4631.1,4631.0,9.67736082]
[1757854546718,0.57510001,4631.1,4631.0,5.95236082]
[1757854546917,0.57510001,4631.1,4631.0,8.88436082]
[1757854548002,0.57510001,4631.1,4631.0,5.16036082]
[1757854548209,0.57510001,4631.1,4631.0,8.88336082]
[1757854548410,1e-08,4631.1,4631.0,10.07906082]
[1757854548719,1e-08,4631.1,4631.0,11.76421203]
[1757854548909,1e-08,4631.1,4631.0,11.30291203]
[1757854550018,0.002,4631.4,4631.2,2.95126757]
[1757854550193,0.002,4631.4,4631.2,9.69486024]
[1757854550394,0.002,4631.4,4631.2,12.2911748]
[1757854550909,0.101,4631.3,4631.2,11.5333748]
[1757854551214,0.101,4631.3,4631.2,9.67326757]
[1757854551522,0.5771,4631.3,4631.2,9.67326757]
[1757854552715,0.101,4631.3,4631.2,9.67326757]
[1757854552903,0.5771,4631.3,4631.2,8.88026757]
[1757854553644,0.101,4631.3,4631.2,8.88026757]
[1757854553993,0.002,4631.3,4631.2,9.96876757]
[1757854554194,0.002,4631.3,4631.2,11.87843041]
[1757854554805,0.002,4631.3,4631.2,12.35253041]
[1757854555001,0.002,4631.3,4631.2,11.40423041]
[1757854555219,0.002,4631.3,4631.2,11.87843041]
[1757854555396,0.002,4631.3,4631.2,12.35253041]
[1757854557004,0.002,4631.3,4631.2,13.9037104]
[1757854557627,0.002,4631.3,4631.2,12.9554104]
[1757854557831,0.002,4631.3,4631.2,12.9494104]
[1757854558401,0.002,4631.3,4631.2,9.2344104]
[1757854558607,0.002,4631.3,4631.2,12.6529104]
[1757854558818,0.002,4631.3,4631.2,12.6509104]
[1757854560037,0.00045746,4631.3,4631.2,12.6499104]
[1757854560606,0.00045746,4631.3,4631.2,12.9643104]
[1757854560835,0.00045746,4631.3,4631.2,12.6499104]
[1757854561015,0.30355746,4631.3,4631.2,11.09773041]
[1757854561416,0.30355746,4631.3,4631.2,7.38673041]
[1757854561646,0.30355746,4631.3,4631.2,11.09673041]
[1757854561810,0.00045746,4631.3,4631.2,12.6479104]
[1757854562831,0.00045746,4631.3,4631.2,13.4365104]
[1757854563203,0.00045746,4631.3,4631.2,11.88533041]
[1757854563605,0.00045746,4631.3,4631.2,12.35943041]
[1757854566614,0.00045746,4631.3,4631.2,11.88533041]
[1757854566819,0.00045746,4631.3,4631.2,11.41113041]
[1757854567231,0.00045746,4631.3,4631.2,11.88533041]
[1757854567418,0.00045746,4631.3,4631.2,12.35943041]
[1757854567833,0.4974,4632.2,4631.7,2.95103447]
[1757854568035,0.4974,4632.6,4631.7,11.20634204]
[1757854568236,0.4974,4632.6,4631.7,12.10214204]
[1757854568540,0.4974,4632.6,4631.7,12.30409186]
[1757854569513,0.1072,4632.9,4631.7,12.77819186]
[1757854569860,0.1072,4632.9,4631.7,12.72061625]
[1757854570016,0.00045758,4631.8,4631.7,12.72061625]
[1757854570523,1e-08,4632.1,4632.0,2.95089464]
[1757854570851,1e-08,4632.1,4632.0,11.61804446]
[1757854571052,1e-08,4632.1,4632.0,12.88074446]
[1757854571255,1e-08,4632.1,4632.0,14.53408855]
[1757854573560,0.4974,4633.5,4632.2,2.95080143]
[1757854573856,0.4974,4633.5,4632.2,9.87633926]
[1757854574065,0.4974,4633.5,4632.2,11.11745125]
[1757854575340,0.36,4634.0,4633.9,2.15800945]
[1757854575512,0.36,4634.0,4633.9,6.05995927]
[1757854575711,0.459,4634.0,4633.9,6.05995927]
[1757854576195,0.593,4634.0,4633.9,6.05995927]
[1757854576513,0.593,4634.0,4633.9,6.16776246]
[1757854578042,0.099,4634.0,4633.9,9.16776246]
[1757854578244,0.099,4634.0,4633.9,10.31106672]
[1757854578832,0.593,4634.0,4633.9,10.31106672]
[1757854579033,0.099,4634.0,4633.9,10.31106672]
[1757854579939,0.593,4634.0,4633.9,10.31106672]
[1757854580147,0.099,4634.0,4633.9,9.16776246]
[1757854580371,0.494,4634.4,4634.3,2.15782318]
[1757854580543,0.494,4634.4,4634.3,6.056773]
[1757854580743,0.593,4634.4,4634.3,6.056773]
[1757854582209,0.9504,4634.4,4634.3,0.20194982]
[1757854582676,1.26121535,4634.4,4634.3,0.20194982]
[1757854582849,0.9504,4634.4,4634.3,0.20194982]
[1757854583866,0.9504,4634.4,4633.8,2.15805281]
[1757854584043,0.9504,4634.4,4633.9,0.20089815]
[1757854584044,0.8514,4634.3,4633.9,0.20089815]
[1757854584243,0.8514,4634.3,4634.0,0.20089815]
[1757854584552,0.6492,4634.2,4634.1,0.20089815]
[1757854584752,0.9509,4634.2,4634.1,0.20089815]
[1757854588092,0.9524,4634.2,4634.1,0.20089815]
[1757854589194,0.7957,4634.2,4634.1,0.20089815]
[1757854589490,0.3017,4634.2,4634.1,2.35881446]
[1757854589872,0.3017,4634.2,4634.1,0.20089815]
[1757854590501,0.7957,4634.2,4634.1,0.20089815]
[1757854591298,0.494,4634.7,4634.3,2.15779765]
[1757854591594,0.494,4634.6,4634.4,0.20089815]
[1757854591766,0.494,4634.6,4634.5,0.20089815]
[1757854591967,0.593,4634.6,4634.5,0.20089815]
[1757854593597,0.593,4634.6,4634.5,0.20121606]
[1757854593780,0.9504,4634.6,4634.5,0.20121606]
[1757854594593,0.593,4634.6,4634.5,0.20121606]
[1757854597902,1.24154,4634.6,4634.5,0.20121606]
[1757854599376,3.39922351,4634.6,4634.5,0.20121606]
[1757854599570,0.88414,4634.6,4634.5,0.20121606]
[1757854601203,3.39922351,4634.6,4634.5,0.20121606]
[1757854601400,3.04182351,4634.6,4634.5,0.20121606]
[1757854601600,3.39922351,4634.6,4634.5,0.20121606]
[1757854602003,3.04182351,4634.6,4634.5,0.20121606]
[1757854602706,0.88414,4634.6,4634.5,0.20121606]
[1757854602874,0.78514,4634.6,4634.5,0.20121606]
[1757854603079,3.692,4634.7,4634.5,0.20121606]
[1757854603304,3.692,4634.7,4634.6,0.20121606]
[1757854603509,3.791,4634.7,4634.6,0.20121606]
[1757854603806,6.44263695,4634.7,4634.6,0.20121606]
[1757854604994,4.285,4634.7,4634.6,0.20121606]
[1757854605199,5.10285991,4634.7,4634.6,0.20121606]
[1757854606406,7.26049686,4634.7,4634.6,0.20121606]
[1757854606606,7.61789686,4634.7,4634.6,0.20121606]
[1757854606799,7.26049686,4634.7,4634.6,0.20121606]
[1757854607183,5.10285991,4634.7,4634.6,0.20121606]
[1757854607601,7.26049686,4634.7,4634.6,0.20121606]
[1757854607804,5.10285991,4634.7,4634.6,0.20121606]
[1757854608210,1.41285991,4634.7,4634.6,0.20121606]
[1757854608514,5.10285991,4634.7,4634.6,0.20121606]
[1757854610515,7.26049686,4634.7,4634.6,0.20121606]
[1757854610893,5.10285991,4634.7,4634.6,0.20121606]
[1757854612414,5.22407462,4634.7,4634.6,0.20121606]
[1757854614416,4.73007462,4634.7,4634.6,0.20121606]
[1757854614620,4.60885991,4634.7,4634.6,0.20121606]
[1757854615198,4.73007406,4634.7,4634.6,0.20121606]
[1757854616406,4.73007406,4634.7,4634.6,0.20212637]
[1757854616407,5.19597406,4634.7,4634.6,0.20212637]
[1757854617125,7.35361101,4634.7,4634.6,0.20212637]
[1757854617326,5.19597406,4634.7,4634.6,0.20212637]
[1757854617930,7.35361101,4634.7,4634.6,0.20212637]
[1757854619023,5.19597406,4634.7,4634.6,0.20212637]
[1757854620134,1.50597406,4634.7,4634.6,0.20212637]
[1757854620337,4.63007406,4634.7,4634.6,0.50712637]
[1757854620637,3.81222921,4634.7,4634.6,0.94252637]
[1757854621306,3.81222921,4634.7,4634.6,1.41382637]
[1757854621941,3.691,4634.7,4634.6,0.94252637]
[1757854622441,3.7982,4634.7,4634.6,1.41382637]
[1757854623241,3.7982,4634.7,4634.6,3.57150988]
[1757854623821,3.7982,4634.7,4634.6,1.41382637]
[1757854624423,0.1092,4634.7,4634.6,1.41382637]
[1757854624647,0.1092,4634.7,4634.6,3.57145316]
[1757854624945,0.1092,4634.7,4634.6,1.41376965]
[1757854626038,0.1092,4634.7,4634.6,0.94246965]
[1757854626808,0.1092,4634.7,4634.6,0.50706965]
[1757854627238,0.1092,4634.7,4634.6,0.20206965]
[1757854627446,0.2082,4634.7,4634.6,0.20206965]
[1757854627630,2.83173695,4634.7,4634.6,0.20206965]
[1757854628226,0.6741,4634.7,4634.6,0.20206965]
[1757854629816,2.83173695,4634.7,4634.6,0.20206965]
[1757854630151,0.6741,4634.7,4634.6,0.20206965]
[1757854631126,2.83173695,4634.7,4634.6,0.20206965]
[1757854631328,3.49181065,4634.7,4634.6,0.20206965]
[1757854631820,3.7972,4634.7,4634.6,0.20206965]
[1757854634154,6.51973695,4634.7,4634.6,0.20206965]
[1757854634541,4.3621,4634.7,4634.6,0.20206965]
[1757854634847,6.51973695,4634.7,4634.6,0.20206965]
[1757854635828,6.99834129,4634.7,4634.6,0.20206965]
[1757854636031,7.92193223,4634.7,4634.6,0.20206965]
[1757854637667,7.56453223,4634.7,4634.6,0.20206965]
[1757854642283,7.92193223,4634.7,4634.6,0.20206965]
[1757854643049,7.92193223,4634.7,4633.1,2.6431779]
[1757854643050,2.15801161,4633.9,4633.1,0.4848]
[1757854643252,0.1072,4633.6,4633.3,2.1582889]
[1757854643482,3.686,4633.5,4633.4,3.30195619]
[1757854643884,3.686,4633.5,4633.4,3.61505619]
[1757854644662,3.686,4633.6,4633.5,2.15819574]
[1757854644875,0.1072,4633.7,4633.6,2.15814917]
[1757854645075,0.1072,4633.7,4633.6,3.87921181]
[1757854645383,0.1072,4633.7,4633.6,4.19231181]
[1757854645553,0.1072,4633.7,4633.6,4.19224722]
[1757854646168,0.1072,4633.7,4633.6,2.03409805]
[1757854646367,0.1072,4633.7,4633.6,0.97197918]
[1757854646854,0.1072,4633.7,4633.6,0.51497918]
[1757854647158,0.1072,4633.7,4633.6,0.20187918]
[1757854647471,0.6793,4633.7,4633.6,0.20187918]
[1757854647882,0.2062,4633.7,4633.6,0.20187918]
[1757854648590,0.1072,4633.7,4633.6,0.20187918]
[1757854649891,0.6793,4633.7,4633.6,0.20187918]
[1757854650294,2.83740259,4633.7,4633.6,0.20180706]
[1757854650665,0.6793,4633.7,4633.6,0.20180706]
[1757854650863,3.69611195,4633.7,4633.6,0.20180706]
[1757854651164,2.15836329,4633.2,4632.8,0.001]
[1757854651365,3.686,4633.1,4632.9,0.20174817]
[1757854651561,0.4731,4633.7,4633.1,0.3131]
[1757854651806,0.64785651,4633.5,4633.2,0.20174817]
[1757854652008,2.80606996,4633.5,4633.3,0.20174817]
[1757854652171,2.80606996,4633.5,4633.4,0.20174817]
[1757854652367,7.25896996,4633.5,4633.4,0.20174817]
[1757854652767,8.20067424,4633.5,4633.4,0.20174817]
[1757854653015,8.36417424,4633.5,4633.4,0.20174817]
[1757854653307,8.20067424,4633.5,4633.4,0.20174817]
[1757854655206,2.1583334,4633.3,4632.8,0.001]
[1757854655403,5.84334009,4633.2,4632.9,0.20158338]
[1757854655700,3.685,4633.2,4633.0,0.20158338]
[1757854655901,5.84333549,4633.2,4633.1,0.20158338]
[1757854656101,5.94233549,4633.2,4633.1,0.20158338]
[1757854656605,6.41543549,4633.2,4633.1,0.20158338]
[1757854657389,6.39933549,4633.2,4633.1,0.20158338]
[1757854658007,6.30033549,4633.2,4633.1,0.20158338]
[1757854658505,4.142,4633.2,4633.1,0.20158338]
[1757854658808,4.142,4633.2,4633.1,0.51468338]
[1757854658981,6.30033549,4633.2,4633.1,0.20158338]
[1757854659306,4.142,4633.2,4633.1,0.20158338]
[1757854662205,4.144,4633.2,4633.1,0.51468338]
[1757854663106,4.144,4633.2,4633.1,0.97168338]
[1757854664688,4.144,4633.2,4633.1,0.51468338]
[1757854665773,4.144,4633.2,4633.1,0.20158338]
[1757854666206,4.144,4633.2,4633.1,0.50968338]
[1757854666500,4.144,4633.2,4633.1,0.97978338]
[1757854667086,3.686,4633.2,4633.1,1.46258338]
[1757854667287,0.002,4633.2,4633.1,3.9651341]
[1757854668103,0.002,4633.2,4633.1,1.80675203]
[1757854668270,0.002,4633.2,4633.1,1.32395203]
[1757854668477,0.002,4633.2,4633.1,3.62096545]
[1757854669402,0.002,4633.2,4633.1,3.13816545]
[1757854670181,0.002,4633.2,4633.1,3.62096545]
[1757854671512,0.002,4633.2,4633.1,3.13816545]
[1757854672273,0.002,4633.2,4633.1,3.62105186]
[1757854672482,0.002,4633.2,4633.1,4.19910361]
[1757854673926,0.002,4633.2,4633.1,10.90368743]
[1757854674130,0.002,4633.2,4633.1,10.88210361]
[1757854683617,0.002,4633.2,4633.1,7.19910361]
[1757854683918,0.002,4633.2,4633.1,10.88010361]
[1757854686233,0.002,4633.2,4633.1,10.87999222]
[1757854688648,0.002,4633.2,4633.1,11.67199222]
[1757854689061,0.002,4633.2,4633.1,11.77919222]
[1757854693149,0.001,4633.2,4633.1,11.77919222]
[1757854693351,0.001,4633.2,4633.1,9.92409222]
[1757854693759,0.001,4633.2,4633.1,10.35719222]
[1757854696036,0.001,4633.2,4633.1,10.84989222]
[1757854696361,0.001,4633.2,4633.1,7.45761015]
[1757854696578,0.001,4633.2,4633.1,3.77961015]
[1757854696752,0.1,4633.2,4633.1,9.61599222]
[1757854697076,0.1,4633.2,4633.1,7.45761015]
[1757854697575,0.1,4633.2,4633.1,9.61599222]
[1757854697777,0.1,4633.2,4633.1,9.61626784]
[1757854700081,0.1,4633.2,4633.1,3.20183402]
[1757854700282,0.5639,4633.2,4633.1,3.20183402]
[1757854700502,0.5639,4633.2,4633.1,0.20183402]
[1757854700701,3.07963549,4633.2,4633.1,0.20183402]
[1757854700997,3.07963549,4633.2,4632.8,0.001]
[1757854701199,0.1072,4633.1,4632.8,0.001]
[1757854701380,0.5711,4633.1,4632.8,0.001]
[1757854701702,0.1016,4632.9,4632.8,0.001]
[1757854702057,0.5655,4632.9,4632.8,0.001]
[1757854702679,0.1016,4632.9,4632.8,0.001]
[1757854703283,0.1072,4633.1,4632.8,0.001]
[1757854703489,0.1072,4633.1,4632.8,2.15952184]
[1757854703856,0.1072,4633.1,4632.8,0.001]
[1757854704057,0.5711,4633.1,4632.8,2.15951509]
[1757854704459,0.5711,4633.1,4632.8,0.001]
[1757854705362,0.4639,4633.0,4632.8,0.001]
[1757854705562,0.099,4632.9,4632.8,0.001]
[1757854705797,0.099,4632.9,4632.8,2.15952184]
[1757854705960,0.099,4632.9,4632.8,0.001]
[1757854706862,0.1072,4633.1,4632.8,0.001]
[1757854707259,0.1016,4632.9,4632.8,0.001]
[1757854707713,0.5655,4632.9,4632.8,0.001]
[1757854708770,0.1016,4632.9,4632.8,0.001]
[1757854708973,0.1072,4633.1,4632.8,0.001]
[1757854709285,0.1016,4632.9,4632.8,0.001]
[1757854710787,0.5655,4632.9,4632.8,0.001]
[1757854711490,0.1072,4633.1,4632.8,0.001]
[1757854712001,0.1016,4632.9,4632.8,0.001]
[1757854712910,0.5655,4632.9,4632.8,0.001]
[1757854713613,0.6727,4632.9,4632.8,0.001]
[1757854714395,0.2088,4632.9,4632.8,0.001]
[1757854715516,0.1072,4632.9,4632.8,0.001]
[1757854715881,0.2062,4632.9,4632.8,0.001]
[1757854716313,2.72137525,4632.9,4632.8,0.001]
[1757854716512,1.40837708,4632.9,4632.8,0.001]
[1757854716717,3.07877525,4632.9,4632.8,0.001]
[1757854718900,2.72137525,4632.9,4632.8,0.001]
[1757854719308,3.07877525,4632.9,4632.8,0.001]
[1757854720827,2.72137525,4632.9,4632.8,0.001]
[1757854725537,3.07877525,4632.9,4632.8,0.001]
[1757854725739,4.13569165,4632.9,4632.8,0.001]
[1757854727759,3.31439165,4632.9,4632.8,0.001]
[1757854730328,1.657,4633.0,4632.8,0.305]
[1757854730549,1.657,4633.0,4632.8,1.2358]
[1757854730748,3.672,4632.9,4632.8,0.305]
[1757854730935,5.329,4633.0,4632.9,2.15847525]
[1757854731140,5.329,4633.0,4632.9,2.46247525]
[1757854731337,5.329,4633.0,4632.9,3.39327525]
[1757854732052,5.329,4633.0,4632.9,1.2348]
[1757854732564,5.329,4633.0,4632.9,3.39327525]
[1757854732943,3.672,4633.0,4632.9,3.39327525]
[1757854733539,3.672,4633.0,4632.9,1.2348]
[1757854733744,3.672,4633.0,4632.9,3.39327525]
[1757854734362,3.671,4633.0,4632.9,3.39327525]
[1757854735061,3.7782,4633.1,4632.9,3.39327525]
[1757854735239,3.7782,4633.1,4633.0,0.9409]
[1757854735740,3.7782,4633.1,4633.0,1.2263]
[1757854735943,3.7782,4633.1,4633.0,0.7382]
[1757854736373,0.1072,4633.1,4633.0,0.7382]
[1757854736538,3.7782,4633.1,4633.0,0.7382]
[1757854738071,3.7782,4633.1,4632.8,0.001]
[1757854738072,2.15847525,4632.9,4632.8,0.001]
[1757854738454,2.73127525,4632.9,4632.8,0.001]
[1757854739282,3.08607525,4632.9,4632.8,0.001]
[1757854739448,4.07288141,4632.9,4632.8,0.001]
[1757854739962,4.15926675,4632.9,4632.8,0.001]
[1757854740973,3.80446675,4632.9,4632.8,0.001]
[1757854741475,4.15926675,4632.9,4632.8,0.001]
[1757854742046,3.80446675,4632.9,4632.8,0.001]
[1757854743071,4.15926675,4632.9,4632.8,0.001]
[1757854743256,3.80446675,4632.9,4632.8,0.001]
[1757854743457,4.15926675,4632.9,4632.8,0.001]
[1757854744454,3.80446675,4632.9,4632.8,0.001]
[1757854744962,7.47346675,4632.9,4632.8,0.001]
[1757854745285,7.59434031,4632.9,4632.8,0.001]
[1757854746772,1.19406506,4632.9,4632.8,0.001]
[1757854746973,3.75538534,4632.9,4632.8,0.2864]
[1757854747192,3.75538534,4632.9,4632.8,0.7392]
[1757854747483,6.01286059,4632.9,4632.8,0.001]
[1757854748163,5.91386059,4632.9,4632.8,0.001]
[1757854749714,3.75538534,4632.9,4632.8,0.001]
[1757854750014,3.75538534,4632.9,4632.8,0.2864]
[1757854750213,0.08638534,4632.9,4632.8,0.7392]
[1757854750386,3.668,4632.9,4632.8,0.7392]
[1757854750585,3.668,4632.9,4632.8,1.2273]
[1757854750787,3.668,4632.9,4632.8,0.7392]
[1757854751884,0.001,4633.2,4632.8,1.2273]
[1757854752086,0.001,4633.2,4632.9,0.9409]
[1757854752322,3.667,4633.1,4632.9,0.9409]
[1757854752508,3.667,4633.1,4632.8,0.001]
[1757854752707,3.667,4633.1,4633.0,1.2263]
[1757854754504,3.667,4633.1,4633.0,0.7382]
[1757854755699,0.001,4633.2,4633.0,0.7382]
[1757854755901,3.7742,4633.1,4633.0,0.7652]
[1757854756560,3.7742,4633.1,4633.0,1.2003]
[1757854757031,3.7742,4633.1,4633.0,3.35872866]
[1757854758107,3.7732,4633.1,4633.0,3.35872866]
[1757854758608,3.7732,4633.1,4633.0,1.2003]
[1757854759336,0.1072,4633.1,4633.0,1.2003]
[1757854759526,3.7732,4633.1,4633.0,1.2003]
[1757854761859,3.7732,4633.1,4632.8,0.001]
[1757854762058,3.7732,4633.1,4632.8,2.59460853]
[1757854762209,3.7732,4633.1,4632.8,2.15950853]
[1757854762405,3.7732,4633.1,4632.9,0.4351]
[1757854762736,2.25747525,4632.9,4632.8,0.001]
[1757854762926,9.27747525,4632.9,4632.8,0.001]
[1757854763129,10.11847525,4632.9,4632.8,0.001]
[1757854763316,10.2392709,4632.9,4632.8,0.001]
[1757854763514,12.33029846,4632.9,4632.8,0.001]
[1757854766939,11.97289846,4632.9,4632.8,0.001]
[1757854767347,11.53679846,4632.9,4632.8,0.001]
[1757854767891,7.14079565,4632.9,4632.8,0.001]
[1757854768031,12.9632709,4632.9,4632.8,0.001]
[1757854768235,12.84247525,4632.9,4632.8,0.001]
[1757854769362,10.684,4632.9,4632.8,0.001]
[1757854770043,12.84247525,4632.9,4632.8,0.001]
[1757854770457,14.38039953,4632.9,4632.8,0.001]
[1757854771562,14.96559953,4632.9,4632.8,0.001]
[1757854775482,15.32039953,4632.9,4632.8,0.001]
[1757854775877,14.96559953,4632.9,4632.8,0.001]
[1757854776081,14.48199953,4632.9,4632.8,0.001]
[1757854777780,12.32352428,4632.9,4632.8,0.001]
[1757854777979,7.02,4632.9,4632.8,0.731]
[1757854778285,10.682,4632.9,4632.8,0.731]
[1757854778874,12.84047525,4632.9,4632.8,0.731]
[1757854779563,10.682,4632.9,4632.8,0.731]
[1757854780353,12.84047525,4632.9,4632.8,0.731]
[1757854780753,10.682,4632.9,4632.8,0.731]
[1757854782888,12.339,4632.9,4632.8,0.731]
[1757854784293,12.338,4632.9,4632.8,1.2108]
[1757854784985,8.677,4632.9,4632.8,1.2108]
[1757854785186,12.338,4632.9,4632.8,1.2108]
[1757854786089,12.338,4632.9,4632.8,0.001]
[1757854786791,12.437,4632.9,4632.8,0.001]
[1757854786996,12.9288,4632.9,4632.8,0.001]
[1757854787160,12.338,4632.9,4632.8,0.001]
[1757854787361,12.437,4632.9,4632.8,0.001]
[1757854788179,14.59547525,4632.9,4632.8,0.001]
[1757854788585,12.437,4632.9,4632.8,0.001]
[1757854789394,16.54691909,4632.9,4632.8,0.001]
[1757854791100,16.05511909,4632.9,4632.8,0.001]
[1757854791397,16.54691909,4632.9,4632.8,0.001]
[1757854792064,16.6680387,4632.9,4632.8,0.001]
[1757854792693,16.1762387,4632.9,4632.8,0.001]
[1757854792872,16.0772387,4632.9,4632.8,0.7587]
[1757854793076,10.83547525,4632.9,4632.8,0.7587]
[1757854793392,12.336,4632.9,4632.8,0.7587]
[1757854793593,14.49447525,4632.9,4632.8,1.2517]
[1757854793799,14.49447525,4632.9,4632.8,0.7587]
[1757854795096,14.61557961,4632.9,4632.8,0.7587]
[1757854795273,14.61557961,4632.9,4632.8,0.2903]
[1757854796194,10.95657961,4632.9,4632.8,0.2903]
[1757854796395,12.45710436,4632.9,4632.8,0.2903]
[1757854796602,14.49447525,4632.9,4632.8,0.7319]
[1757854797202,14.61560137,4632.9,4632.8,0.7319]
[1757854797600,12.45712612,4632.9,4632.8,0.7319]
[1757854797800,8.677,4632.9,4632.8,1.222]
[1757854798006,12.335,4632.9,4632.8,1.222]
[1757854800210,1.657,4632.9,4632.8,1.222]
[1757854800387,1.7642,4632.9,4632.8,3.50272184]
[1757854800579,5.4222,4632.9,4632.8,3.50272184]
[1757854801422,5.4222,4632.9,4632.8,0.2903]
[1757854801589,5.4222,4632.9,4632.8,0.001]
[1757854801911,6.0152,4632.9,4632.8,0.20302695]
[1757854802129,5.4222,4632.9,4632.8,0.94773944]
[1757854802684,5.4212,4632.9,4632.8,0.7457]
[1757854803617,5.4212,4632.9,4632.8,1.2358]
[1757854804114,1.7642,4632.9,4632.8,1.2358]
[1757854804428,5.4212,4632.9,4632.8,1.2358]
[1757854804605,5.4212,4632.9,4632.8,0.3041]
[1757854804784,8.61589525,4632.9,4632.8,0.001]
[1757854804984,16.21337843,4632.9,4632.8,0.001]
[1757854806224,19.4151295,4632.9,4632.8,0.001]
[1757854806433,20.20704912,4632.9,4632.8,0.001]
[1757854806639,20.67181679,4632.9,4632.8,0.001]
[1757854807201,20.20704912,4632.9,4632.8,0.001]
[1757854807603,20.67154654,4632.9,4632.8,0.001]
[1757854809218,20.20704912,4632.9,4632.8,0.001]
[1757854810613,25.84890251,4632.9,4632.8,0.001]
[1757854811336,25.38504912,4632.9,4632.8,0.001]
[1757854812414,21.37064912,4632.9,4632.8,0.001]
[1757854812614,24.03297843,4632.9,4632.8,0.001]
[1757854812821,24.11938561,4632.9,4632.8,0.001]
[1757854815237,25.26878561,4632.9,4632.8,0.001]
[1757854816244,24.91138561,4632.9,4632.8,0.001]
[1757854816544,26.20538561,4632.9,4632.8,0.001]
[1757854816748,19.96938561,4632.9,4632.8,0.001]
[1757854816947,23.51718561,4632.9,4632.8,0.001]
[1757854817455,19.86218561,4632.9,4632.8,0.001]
[1757854817749,23.41818561,4632.9,4632.8,0.7775]
[1757854819133,23.41818561,4632.9,4632.8,0.3097]
[1757854819449,19.76318561,4632.9,4632.8,0.001]
[1757854819622,23.41718561,4632.9,4632.8,0.001]
[1757854821053,23.41670241,4632.9,4632.8,0.001]
[1757854821435,24.00310241,4632.9,4632.8,0.001]
[1757854822253,25.15250241,4632.9,4632.8,0.001]
[1757854824445,21.14110241,4632.9,4632.8,0.001]
[1757854824637,24.20870241,4632.9,4632.8,0.001]
[1757854825968,23.41670241,4632.9,4632.8,0.001]
[1757854826121,23.41670241,4632.9,4632.8,0.7775]
[1757854827528,16.22048241,4632.9,4632.8,1.2459]
[1757854827757,3.93607523,4632.9,4632.8,1.2459]
[1757854828056,7.46847525,4632.9,4632.8,1.2459]
[1757854828726,5.31,4632.9,4632.8,1.2459]
[1757854828964,7.46847525,4632.9,4632.8,1.2459]
[1757854830730,3.81547525,4632.9,4632.8,1.2459]
[1757854830931,5.309,4632.9,4632.8,1.2459]
[1757854831131,7.46747525,4632.9,4632.8,1.2459]
[1757854831331,5.309,4632.9,4632.8,1.2459]
[1757854832662,5.309,4632.9,4632.8,1.37049]
[1757854832663,1.657,4632.9,4632.8,1.37049]
[1757854832960,5.41512075,4632.9,4632.8,1.37049]
[1757854833163,5.41512075,4632.9,4632.8,3.52901184]
[1757854834043,1.76312075,4632.9,4632.8,1.37049]
[1757854834244,1.76312075,4632.9,4632.8,3.52901184]
[1757854834442,5.41512075,4632.9,4632.8,1.37049]
[1757854835066,1.76312075,4632.9,4632.8,3.52901184]
[1757854835771,5.41412075,4632.9,4632.8,3.52901184]
[1757854836066,1.76312075,4632.9,4632.8,3.52901184]
[1757854836271,5.41412075,4632.9,4632.8,3.52901184]
[1757854838935,5.30692075,4632.9,4632.8,3.52901184]
[1757854839564,1.65592075,4632.9,4632.8,3.52901184]